bitfinex/quotes_ETHUSD_20240821
["timestamp","ask_amount","ask_price","bid_price","bid_amount"]
[1724246437757,3.87049,2583.7,2583.3,1.30941]
[1724246438543,3.87026,2583.8,2583.3,1.30941]
[1724246439043,3.87043,2583.7,2583.3,1.30941]
[1724246443250,3.87043,2583.7,2583.4,2.4118]
[1724246443417,3.87004,2584.0,2583.6,3.87055]
[1724246443624,3.86989,2584.1,2583.7,2.9618]
[1724246443854,3.86989,2584.1,2583.7,3.14714874]
[1724246445070,3.86969,2584.2,2583.7,3.14714874]
[1724246445071,3.86998,2584.0,2583.7,3.14714874]
[1724246447418,3.87012,2583.9,2583.7,0.73534874]
[1724246447626,3.87026,2583.8,2583.7,0.18534874]
[1724246447927,3.87043,2583.7,2583.4,8.09]
[1724246448973,3.87043,2583.7,2583.5,0.55]
[1724246450170,3.87028,2583.8,2583.5,0.55]
[1724246451670,6.1212,2583.9,2583.5,0.55]
[1724246451839,3.87035,2583.8,2583.5,0.55]
[1724246458876,3.87035,2583.8,2583.6,0.18527598]
[1724246459844,3.87041,2583.7,2583.6,0.18527598]
[1724246460047,3.87086,2583.4,2583.0,7.39]
[1724246461694,3.87086,2583.4,2583.0,11.26146]
[1724246461850,3.87048,2583.7,2583.2,3.87109]
[1724246462060,3.87038,2583.8,2583.3,3.87093]
[1724246462254,3.87038,2583.8,2583.4,0.55]
[1724246462497,7.74073,2583.8,2583.4,0.55]
[1724246462793,3.87035,2583.8,2583.4,0.55]
[1724246463138,3.87035,2583.8,2583.4,3.0028]
[1724246463439,7.74073,2583.8,2583.4,3.0028]
[1724246463664,3.8705,2583.7,2583.4,3.0028]
[1724246463874,3.8705,2583.7,2583.4,0.55]
[1724246464179,3.8705,2583.7,2583.2,7.94938]
[1724246464180,3.87069,2583.6,2583.3,0.55]
[1724246464386,3.87072,2583.5,2583.3,0.55]
[1724246464593,3.083022,2583.5,2583.0,9.7823]
[1724246464883,3.87109,2583.3,2582.8,0.7]
[1724246465252,3.87118,2583.2,2582.8,0.7]
[1724246465453,7.74249,2583.2,2582.8,0.7]
[1724246465658,3.87118,2583.2,2582.8,0.7]
[1724246465878,3.87118,2583.2,2582.9,0.55]
[1724246466957,3.87132,2583.1,2582.9,0.55]
[1724246469072,7.74225,2583.3,2582.9,0.55]
[1724246469259,3.8712,2583.2,2582.9,0.55]
[1724246470238,3.0,2583.6,2583.0,2.3282]
[1724246470445,7.74106,2583.7,2583.3,2.3282]
[1724246470640,2.4336,2583.9,2583.4,1.25]
[1724246470641,3.87032,2583.8,2583.4,1.25]
[1724246470861,3.87019,2583.9,2583.5,0.35782]
[1724246471098,7.74041,2583.9,2583.6,0.55]
[1724246471588,3.87028,2583.8,2583.5,0.55]
[1724246473718,3.87028,2583.8,2583.6,0.18570045]
[1724246475696,3.8701,2584.0,2583.6,0.18570045]
[1724246475896,3.86994,2584.1,2583.7,3.0002]
[1724246476142,3.86994,2584.1,2583.8,0.70564505]
[1724246476299,9.32992,2584.3,2583.8,0.70564505]
[1724246476519,9.32992,2584.3,2583.9,0.18544992]
[1724246476816,9.32992,2584.3,2583.7,6.87061]
[1724246477002,3.86984,2584.1,2584.0,0.18537698]
[1724246477197,3.86984,2584.1,2583.7,3.0002]
[1724246477405,3.86984,2584.1,2584.0,0.18537698]
[1724246477604,3.86984,2584.1,2583.7,3.0002]
[1724246477918,3.86984,2584.1,2583.7,4.074346]
[1724246478122,3.86984,2584.1,2583.8,0.18552286]
[1724246478282,3.86984,2584.1,2583.7,4.074346]
[1724246478483,3.86984,2584.1,2583.9,0.18544992]
[1724246478683,9.32989,2584.3,2583.7,4.774346]
[1724246478684,7.7392,2584.3,2583.7,4.774346]
[1724246478885,3.86959,2584.3,2584.0,0.18537698]
[1724246479205,3.86966,2584.2,2583.8,3.87025]
[1724246479521,3.86966,2584.2,2583.9,0.55]
[1724246479725,3.86966,2584.2,2583.9,0.73544992]
[1724246482140,3.86959,2584.3,2583.9,0.73544992]
[1724246482304,7.73919,2584.3,2583.9,0.73544992]
[1724246482709,3.86967,2584.2,2583.9,0.73544992]
[1724246484748,6.86917,2584.6,2584.0,7.00784]
[1724246485046,6.86916,2584.6,2584.1,0.55]
[1724246485341,3.86966,2584.2,2584.1,0.73530405]
[1724246485495,7.73932,2584.2,2584.1,0.18530405]
[1724246485698,7.73932,2584.2,2583.7,0.7]
[1724246485699,3.87018,2583.9,2583.7,0.7]
[1724246485934,3.87018,2583.9,2583.8,0.55]
[1724246487614,3.86997,2584.0,2583.8,0.55]
[1724246488814,3.86997,2584.0,2583.9,0.18519019]
[1724246490338,4.9444226,2584.0,2583.9,0.18519019]
[1724246490539,8.8143926,2584.0,2583.9,0.18519019]
[1724246490755,8.8143926,2584.0,2583.4,11.96078]
[1724246490756,3.87029,2583.8,2583.4,11.96078]
[1724246491056,3.87029,2583.8,2583.5,0.55]
[1724246491350,3.87013,2583.9,2583.5,0.55]
[1724246492137,3.87012,2583.9,2583.4,8.44155]
[1724246492471,3.87012,2583.9,2583.5,0.55]
[1724246492931,6.18167,2584.0,2583.5,4.4207]
[1724246493131,3.86997,2584.0,2583.6,2.2949]
[1724246493533,3.86997,2584.0,2583.6,6.16545]
[1724246493728,3.86997,2584.0,2583.6,7.4014365]
[1724246494986,3.86997,2584.0,2583.6,3.5308865]
[1724246495186,7.74003,2584.0,2583.6,3.5308865]
[1724246495489,3.87012,2583.9,2583.5,4.42069]
[1724246495984,3.86997,2584.0,2583.5,4.42069]
[1724246495985,3.86987,2584.1,2583.6,3.87045]
[1724246496200,3.86987,2584.1,2583.7,0.55]
[1724246498580,3.86987,2584.1,2583.7,4.42036]
[1724246498794,3.86987,2584.1,2583.8,2.4751]
[1724246501584,7.7398,2584.1,2583.8,2.4751]
[1724246501790,3.86998,2584.0,2583.7,0.55]
[1724246501996,3.87014,2583.9,2583.7,0.55]
[1724246502248,3.87014,2583.9,2583.6,0.55]
[1724246503685,3.87014,2583.9,2583.7,0.18520302]
[1724246503987,3.87026,2583.8,2583.7,0.18520302]
[1724246505209,10.98736,2583.8,2583.7,0.18520302]
[1724246505415,7.74052,2583.8,2583.7,0.18520302]
[1724246505715,7.74052,2583.8,2583.3,7.39]
[1724246505716,3.87026,2583.8,2583.3,11.261]
[1724246505930,3.87026,2583.8,2583.7,0.18523469]
[1724246506259,3.87026,2583.8,2583.4,3.87086]
[1724246506404,6.86958,2584.3,2583.7,0.18523469]
[1724246506405,3.86977,2584.2,2583.7,0.18523469]
[1724246506584,3.0,2584.1,2583.6,6.25346]
[1724246506782,3.0,2584.1,2583.8,0.18516175]
[1724246507013,3.86997,2584.0,2583.7,0.73523469]
[1724246507186,3.86997,2584.0,2583.9,0.1850888]
[1724246507379,3.86997,2584.0,2583.8,0.18516175]
[1724246507697,3.86997,2584.0,2583.9,0.1850888]
[1724246508012,3.86997,2584.0,2583.7,0.55]
[1724246508195,3.86997,2584.0,2583.9,0.1850888]
[1724246508396,3.86997,2584.0,2583.8,0.18516175]
[1724246508571,3.86997,2584.0,2583.9,0.1850888]
[1724246508973,3.86997,2584.0,2583.7,0.55]
[1724246509174,3.86997,2584.0,2583.9,0.1850888]
[1724246509403,3.86997,2584.0,2583.8,0.18516175]
[1724246509565,3.86997,2584.0,2583.9,0.1850888]
[1724246509969,3.86997,2584.0,2583.7,0.55]
[1724246510217,3.86997,2584.0,2583.9,0.1850888]
[1724246510404,3.86997,2584.0,2583.8,0.18516175]
[1724246510605,3.86997,2584.0,2583.9,0.1850888]
[1724246511315,3.86997,2584.0,2583.7,0.55]
[1724246511509,3.86997,2584.0,2583.9,0.1850888]
[1724246511817,3.86997,2584.0,2583.8,0.18516175]
[1724246511986,3.86997,2584.0,2583.9,0.1850888]
[1724246512391,3.86997,2584.0,2583.7,0.55]
[1724246512588,3.86997,2584.0,2583.9,0.1850888]
[1724246513265,3.86997,2584.0,2583.7,0.55]
[1724246513841,3.86997,2584.0,2583.8,0.18516175]
[1724246514148,7.74002,2584.0,2583.7,0.55]
[1724246514297,3.86997,2584.0,2583.9,0.1850888]
[1724246514642,3.86982,2584.1,2583.8,0.18516175]
[1724246514850,3.86997,2584.0,2583.9,0.1850888]
[1724246515205,3.86997,2584.0,2583.7,0.55]
[1724246515513,3.86997,2584.0,2583.8,0.18515541]
[1724246515849,3.86997,2584.0,2583.7,1.687396]
[1724246515997,3.86997,2584.0,2583.9,0.18508247]
[1724246516195,3.86997,2584.0,2583.8,0.18515541]
[1724246516397,3.86997,2584.0,2583.9,0.18508247]
[1724246517149,3.86997,2584.0,2583.7,0.55]
[1724246517355,3.86997,2584.0,2583.9,0.18508247]
[1724246517591,3.86997,2584.0,2583.8,0.18515541]
[1724246517696,3.86981,2584.2,2583.9,0.18508247]
[1724246518046,3.86996,2584.0,2583.9,0.18508247]
[1724246518553,3.86996,2584.0,2583.6,2.9517]
[1724246518842,3.86996,2584.0,2583.9,0.18508247]
[1724246519047,3.86996,2584.0,2583.6,0.55]
[1724246519213,3.86996,2584.0,2583.9,0.18508247]
[1724246519412,3.86996,2584.0,2583.6,0.55]
[1724246519644,3.86996,2584.0,2583.9,0.18508247]
[1724246519946,3.86996,2584.0,2583.6,0.55]
[1724246520117,3.86996,2584.0,2583.9,0.18508247]
[1724246520295,3.86996,2584.0,2583.6,0.55]
[1724246520504,3.86996,2584.0,2583.9,0.18508247]
[1724246520732,3.86996,2584.0,2583.6,0.55]
[1724246520912,3.86996,2584.0,2583.9,0.18508247]
[1724246521219,3.86996,2584.0,2583.6,0.55]
[1724246521469,3.86996,2584.0,2583.7,0.755579]
[1724246521673,3.86996,2584.0,2583.8,0.55]
[1724246521834,3.86996,2584.0,2583.8,0.73515541]
[1724246523671,3.87011,2583.9,2583.8,0.73515541]
[1724246523875,7.74022,2583.9,2583.8,0.18515541]
[1724246524033,3.8705,2583.7,2583.3,7.39]
[1724246524238,3.8705,2583.7,2583.4,0.18544724]
[1724246524439,3.8705,2583.7,2583.2,6.98365]
[1724246524756,3.8705,2583.7,2583.3,0.18552021]
[1724246524931,3.8705,2583.7,2583.3,1.49148331]
[1724246525137,3.8705,2583.7,2583.3,1.3059631]
[1724246525341,3.8705,2583.7,2583.4,0.73540924]
[1724246526792,3.87029,2583.8,2583.4,0.73540924]
[1724246527654,2.4873,2584.0,2583.4,6.29124924]
[1724246527655,6.35741,2584.0,2583.4,6.29124924]
[1724246527883,3.87014,2583.9,2583.5,1.14681323]
[1724246528085,6.35741,2584.0,2583.6,0.55]
[1724246528285,6.35741,2584.0,2583.6,0.73526331]
[1724246528671,7.74021,2584.0,2583.6,0.73526331]
[1724246528909,3.87015,2583.9,2583.6,0.73526331]
[1724246530211,3.8701,2584.0,2583.6,0.73526331]
[1724246530365,3.86961,2584.3,2583.8,3.87023]
[1724246530703,3.86961,2584.3,2583.9,0.73504447]
[1724246532801,3.86918,2584.6,2584.1,4.5697]
[1724246533010,6.35976,2584.8,2584.3,3.86951]
[1724246533310,3.86892,2584.7,2584.2,6.36491134]
[1724246533636,3.86892,2584.7,2584.4,0.18447083]
[1724246533905,3.86892,2584.7,2584.2,6.18013]
[1724246533906,3.86892,2584.7,2584.5,0.18439792]
[1724246534253,3.86886,2584.8,2584.3,3.86951]
[1724246534471,3.86886,2584.8,2584.4,0.55]
[1724246534682,3.86886,2584.8,2584.4,0.73447083]
[1724246534898,6.12036,2585.2,2584.6,1.685]
[1724246535154,6.12036,2585.2,2584.7,0.55]
[1724246535364,6.12036,2585.2,2584.7,0.73368853]
[1724246535566,6.12036,2585.2,2584.7,4.60259853]
[1724246536809,3.86803,2585.3,2584.7,5.30251853]
[1724246536980,3.86803,2585.3,2584.7,10.33531238]
[1724246537178,3.86803,2585.3,2584.7,6.46648238]
[1724246538071,2.4397,2585.4,2584.9,6.2897]
[1724246538276,5.4397,2585.4,2585.0,0.73334325]
[1724246538604,3.86821,2585.2,2585.0,0.73334325]
[1724246538927,3.86832,2585.1,2585.0,0.18334325]
[1724246539093,3.86852,2585.0,2584.7,0.7]
[1724246539423,3.86852,2585.0,2584.8,0.18338774]
[1724246539779,3.86852,2585.0,2584.7,0.7]
[1724246539982,3.86863,2584.9,2584.4,2.9583]
[1724246540196,3.86863,2584.9,2584.5,0.55]
[1724246542626,6.22413,2585.1,2584.5,0.55]
[1724246542931,3.86814,2585.3,2584.8,2.2866]
[1724246543130,3.86814,2585.3,2584.9,0.55]
[1724246543633,6.31378,2585.4,2584.9,4.4186]
[1724246544897,6.31378,2585.4,2585.0,3.86842]
[1724246544898,2.4459,2585.4,2585.0,3.86842]
[1724246545095,2.4459,2585.4,2585.1,0.55]
[1724246545692,6.31378,2585.4,2585.1,0.55]
[1724246545896,6.31378,2585.4,2584.8,6.840758]
[1724246545897,6.31378,2585.4,2584.9,0.55]
[1724246546298,3.86802,2585.3,2584.9,0.55]
[1724246546731,3.86825,2585.2,2584.9,0.55]
[1724246546932,3.86825,2585.2,2584.8,0.55]
[1724246547097,3.86802,2585.3,2584.9,0.747874]
[1724246547303,3.86802,2585.3,2585.0,0.55]
[1724246548125,3.86822,2585.2,2584.7,0.7]
[1724246548512,7.73648,2585.2,2584.8,0.73338774]
[1724246548688,3.86835,2585.1,2584.8,0.73338774]
[1724246548896,7.73653,2585.2,2584.8,0.73338774]
[1724246549898,2.4459,2585.4,2584.8,0.73338774]
[1724246550085,3.86838,2585.1,2584.8,0.73338774]
[1724246550286,7.73645,2585.2,2584.8,0.73338774]
[1724246550884,3.8682,2585.2,2584.8,0.73338774]
[1724246551227,7.73648,2585.2,2584.8,0.73338774]
[1724246552537,3.8682,2585.2,2584.8,0.73338774]
[1724246552738,7.73645,2585.2,2584.8,0.73338774]
[1724246553480,3.8682,2585.2,2584.8,0.73338774]
[1724246553986,3.86834,2585.1,2584.8,0.73338774]
[1724246554196,6.22518,2585.0,2584.8,0.73338774]
[1724246554487,3.86848,2585.0,2584.8,0.73338774]
[1724246556355,3.86862,2584.9,2584.8,0.18338774]
[1724246556562,3.86894,2584.7,2584.4,0.7]
[1724246556764,3.86894,2584.7,2584.2,2.4497]
[1724246556984,3.86948,2584.4,2584.1,7.39]
[1724246557187,3.86966,2584.2,2584.1,7.39]
[1724246557479,2.4649,2584.4,2583.7,4.57029]
[1724246557480,3.86966,2584.3,2583.7,4.57029]
[1724246557687,3.86982,2584.1,2583.7,0.7]
[1724246558092,3.86969,2584.2,2583.7,0.7]
[1724246558611,3.86965,2584.3,2583.7,4.57041]
[1724246558771,7.7393,2584.3,2583.7,4.57041]
[1724246558969,7.7393,2584.3,2583.7,5.655418]
[1724246559188,7.7393,2584.3,2583.8,0.55]
[1724246561322,3.86965,2584.3,2583.8,0.55]
[1724246561684,7.73925,2584.3,2583.8,0.55]
[1724246562591,3.8696,2584.3,2583.8,0.55]
[1724246563819,7.7392,2584.3,2583.9,0.18472146]
[1724246564129,3.8696,2584.3,2583.9,0.18472146]
[1724246564497,7.7392,2584.3,2583.9,0.18472146]
[1724246565632,3.8697,2584.2,2583.9,0.18472146]
[1724246565810,3.8696,2584.3,2583.9,0.18472146]
[1724246565811,3.86982,2584.1,2583.9,0.18472146]
[1724246566577,4.527699,2584.3,2583.9,0.18472146]
[1724246566578,7.73992,2584.0,2583.9,0.18472146]
[1724246566830,7.73992,2584.0,2583.4,3.87083]
[1724246566831,3.87021,2583.9,2583.4,3.87083]
[1724246567032,3.87021,2583.9,2583.4,4.577693]
[1724246567453,3.87021,2583.9,2583.4,8.448483]
[1724246567836,6.29756,2584.0,2583.5,3.87071]
[1724246568467,10.16764,2584.0,2583.5,3.87071]
[1724246568745,10.16762,2584.0,2583.5,3.87071]
[1724246570089,3.87012,2583.9,2583.4,4.577693]
[1724246570274,3.87012,2583.9,2583.5,1.2575993]
[1724246570870,6.29756,2584.0,2583.5,5.1282893]
[1724246571194,3.86996,2584.0,2583.5,5.1282893]
[1724246571779,7.74001,2584.0,2583.5,5.1282893]
[1724246572498,3.87013,2583.9,2583.5,1.2575993]
[1724246572705,3.86996,2584.0,2583.5,5.1282293]
[1724246573554,7.73952,2584.2,2583.7,6.15927]
[1724246573755,7.73952,2584.2,2583.8,0.55]
[1724246573756,3.86975,2584.2,2583.8,0.55]
[1724246574721,7.7395,2584.2,2583.8,0.55]
[1724246574915,3.86989,2584.1,2583.8,0.55]
[1724246575099,3.86975,2584.2,2583.8,0.55]
[1724246575428,3.86959,2584.3,2583.8,5.25816502]
[1724246576430,3.86948,2584.4,2583.9,3.87004]
[1724246576581,3.86947,2584.4,2584.0,0.55]
[1724246576786,3.86952,2584.3,2584.0,0.55]
[1724246577029,3.86952,2584.3,2583.9,0.55]
[1724246577338,3.86952,2584.3,2583.9,1.2497065]
[1724246577693,3.86937,2584.4,2583.9,1.2497065]
[1724246577888,3.86937,2584.4,2584.0,6.14523]
[1724246578124,3.86937,2584.4,2584.1,0.55]
[1724246578287,3.86916,2584.6,2584.1,0.55]
[1724246578288,3.86923,2584.5,2584.1,1.80149665]
[1724246578494,3.86916,2584.6,2584.2,2.2691]
[1724246578788,3.86887,2584.8,2584.3,0.55]
[1724246578789,3.86892,2584.7,2584.3,0.55]
[1724246578988,3.86892,2584.7,2584.3,0.73458807]
[1724246579233,3.86892,2584.7,2584.3,1.61707254]
[1724246581434,3.86887,2584.8,2584.3,1.61707254]
[1724246581800,3.86889,2584.8,2584.5,0.7]
[1724246581972,3.86884,2584.8,2584.6,0.55]
[1724246582260,7.73773,2584.8,2584.6,0.73417938]
[1724246583020,3.86884,2584.8,2584.6,0.73417938]
[1724246585261,3.86877,2584.8,2584.6,1.10466732]
[1724246587464,3.86867,2584.9,2584.6,1.10466732]
[1724246587627,3.86885,2584.8,2584.6,0.73417938]
[1724246588780,3.86885,2584.8,2584.6,0.18417938]
[1724246588781,3.86892,2584.7,2584.6,0.18417938]
[1724246588974,7.73784,2584.7,2584.6,0.18417938]
[1724246589260,7.73784,2584.7,2584.2,0.7]
[1724246589261,3.86908,2584.6,2584.2,0.7]
[1724246589565,3.86908,2584.6,2584.3,0.55]
[1724246590725,3.86893,2584.7,2584.3,0.55]
[1724246592123,6.243,2584.8,2584.0,11.25989]
[1724246592124,3.86907,2584.6,2584.0,11.25989]
[1724246592306,3.86907,2584.6,2584.1,0.55]
[1724246592957,3.86922,2584.5,2584.1,0.55]
[1724246593534,3.86922,2584.5,2584.2,0.18385681]
[1724246596346,3.86938,2584.4,2584.2,0.18385681]
[1724246596545,10.06985,2584.4,2584.2,0.18385681]
[1724246596770,6.20038,2584.4,2584.2,0.18385681]
[1724246597081,10.06984,2584.4,2583.9,4.5701]
[1724246597379,6.20038,2584.4,2584.3,0.18378389]
[1724246597550,6.20038,2584.4,2584.0,0.55]
[1724246597969,10.06983,2584.4,2584.1,0.18404371]
[1724246598351,6.20038,2584.4,2584.1,0.18404371]
[1724246598539,10.06982,2584.4,2584.1,0.18404371]
[1724246598882,6.20038,2584.4,2584.1,0.18404371]
[1724246599184,10.06983,2584.4,2584.1,0.18404371]
[1724246599339,6.20038,2584.4,2584.1,0.18404371]
[1724246600378,10.06985,2584.4,2584.1,0.18404371]
[1724246600580,6.20038,2584.4,2584.1,0.18404371]
[1724246600949,7.83309,2584.6,2584.1,4.05384371]
[1724246601149,3.86919,2584.6,2584.1,4.97122708]
[1724246601564,3.86919,2584.6,2584.2,3.86963]
[1724246601955,3.86919,2584.6,2584.3,0.18413845]
[1724246603453,3.86892,2584.7,2584.3,0.18413845]
[1724246603797,2.2799,2584.8,2584.4,2.2849]
[1724246603798,3.86885,2584.8,2584.4,2.2849]
[1724246604088,7.7377,2584.8,2584.4,4.09125289]
[1724246604297,3.86885,2584.8,2584.4,1.80635289]
[1724246605746,3.86856,2585.0,2584.5,6.3379]
[1724246606063,7.73711,2585.0,2584.6,0.7337551]
[1724246606390,3.86862,2584.9,2584.6,0.7337551]
[1724246606889,3.86855,2585.0,2584.6,0.99815821]
[1724246607796,3.86863,2584.9,2584.6,0.99815821]
[1724246608742,3.86855,2585.0,2584.6,0.99815821]
[1724246608992,6.86832,2585.1,2584.7,0.55]
[1724246609195,3.86826,2585.2,2584.7,0.55]
[1724246609359,3.86826,2585.2,2584.8,3.05049948]
[1724246610011,3.86839,2585.1,2584.8,3.05049948]
[1724246613287,3.86826,2585.2,2584.8,3.05049948]
[1724246613493,6.24447,2585.4,2584.9,0.55]
[1724246613692,3.86803,2585.3,2584.9,0.55]
[1724246613902,3.86803,2585.3,2585.0,0.18321031]
[1724246614995,3.86784,2585.5,2585.2,2.3535]
[1724246615405,3.86784,2585.5,2585.3,0.1829917]
[1724246615703,3.86787,2585.4,2585.3,0.1829917]
[1724246616069,7.73582,2585.4,2585.0,2.4165]
[1724246616272,7.73583,2585.4,2585.1,0.73301085]
[1724246616800,3.86802,2585.3,2585.1,0.73301085]
[1724246617377,3.86817,2585.2,2585.1,0.18301085]
[1724246617559,3.86817,2585.2,2584.9,0.7]
[1724246617797,7.73585,2585.4,2585.0,0.18308372]
[1724246618008,3.86787,2585.4,2585.0,0.73308372]
[1724246618857,3.86802,2585.3,2585.0,0.73308372]
[1724246619676,3.86787,2585.4,2585.0,0.18308372]
[1724246619974,3.86787,2585.4,2585.1,2.4475]
[1724246620319,3.86787,2585.4,2585.2,0.18293798]
[1724246621656,7.73583,2585.4,2585.2,0.18293798]
[1724246621855,3.86787,2585.4,2585.2,0.18293798]
[1724246623166,2.4282,2585.8,2585.3,0.55]
[1724246623365,3.86752,2585.7,2585.3,0.55]
[1724246623672,3.86752,2585.7,2585.4,0.18252642]
[1724246624375,3.86759,2585.6,2585.4,0.18252642]
[1724246625004,7.73529,2585.6,2585.4,0.18252642]
[1724246625207,8.65433835,2585.6,2585.4,0.18252642]
[1724246625566,5.55072,2585.5,2585.4,0.18252642]
[1724246626018,3.86787,2585.4,2584.9,14.29243]
[1724246626311,3.86787,2585.4,2585.0,0.55]
[1724246626532,7.7353,2585.6,2585.0,0.55]
[1724246626664,7.7353,2585.6,2585.1,3.8683]
[1724246626665,3.86759,2585.6,2585.1,3.8683]
[1724246627210,3.86743,2585.7,2585.2,4.56814]
[1724246627389,3.86743,2585.7,2585.3,0.55]
[1724246627775,3.8676,2585.6,2585.3,0.55]
[1724246629520,6.29555,2585.8,2585.3,0.55]
[1724246629521,3.86743,2585.7,2585.3,0.55]
[1724246629672,3.86743,2585.7,2585.3,1.478472]
[1724246632283,3.86743,2585.7,2585.3,5.346472]
[1724246633917,7.73496,2585.7,2585.3,0.55]
[1724246634124,3.86743,2585.7,2585.3,0.55]
[1724246635474,7.73497,2585.7,2585.3,0.55]
[1724246636185,3.86743,2585.7,2585.3,0.55]
[1724246636375,7.73497,2585.7,2585.4,0.13076099]
[1724246637296,3.86758,2585.6,2585.4,0.13076099]
[1724246638666,7.73544,2585.5,2585.4,0.13076099]
[1724246639199,3.86772,2585.5,2585.4,0.13076099]
[1724246639998,3.86744,2585.7,2585.4,0.68076099]
[1724246642351,7.73495,2585.7,2585.4,0.68076099]
[1724246644212,3.86744,2585.7,2585.4,0.68076099]
[1724246645457,3.86729,2585.8,2585.4,1.45242809]
[1724246646219,3.86729,2585.8,2585.5,3.0294]
[1724246647503,3.86745,2585.7,2585.5,3.0294]
[1724246648917,3.86757,2585.6,2585.5,3.0294]
[1724246650959,3.8673,2585.8,2585.5,3.7294]
[1724246651162,3.8673,2585.8,2585.6,0.63921787]
[1724246651455,3.86742,2585.7,2585.6,0.63921787]
[1724246651759,3.86742,2585.7,2585.6,0.55]
[1724246653782,10.11102,2585.7,2585.6,0.7320833]
[1724246653949,10.11102,2585.7,2585.6,0.1820833]
[1724246654144,13.97852,2585.7,2585.6,0.1820833]
[1724246654365,3.86772,2585.5,2585.4,0.13076099]
[1724246654564,7.73544,2585.5,2585.4,0.13076099]
[1724246654950,13.28616,2585.5,2585.4,0.13076099]
[1724246655576,19.42548,2585.5,2585.4,0.13076099]
[1724246655804,18.55776,2585.5,2585.4,0.13076099]
[1724246656079,20.80028,2585.5,2585.4,0.13076099]
[1724246657179,24.668,2585.5,2585.4,0.13076099]
[1724246664533,31.37526489,2585.5,2585.4,0.13076099]
[1724246664690,28.53572,2585.5,2585.4,0.13076099]
[1724246665187,31.8899324,2585.5,2585.4,0.13076099]
[1724246665406,28.53572,2585.5,2585.4,0.13076099]
[1724246665742,28.53572,2585.5,2585.4,9.9e-07]
[1724246666091,32.08615226,2585.5,2585.4,9.9e-07]
[1724246667185,28.73193986,2585.5,2585.4,9.9e-07]
[1724246667383,32.08352195,2585.5,2585.4,9.9e-07]
[1724246667693,28.73193986,2585.5,2585.4,9.9e-07]
[1724246667989,32.48808057,2585.5,2585.4,9.9e-07]
[1724246668188,32.48808057,2585.5,2584.0,2.4609]
[1724246668189,7.73962,2584.1,2584.0,2.4609]
[1724246668542,7.73962,2584.1,2584.0,2.63915723]
[1724246668844,7.73962,2584.1,2584.0,3.18915723]
[1724246669068,7.73962,2584.1,2584.0,2.63915723]
[1724246671045,7.73962,2584.1,2584.0,0.17825723]
[1724246671244,3.87011,2583.9,2583.8,3.1306]
[1724246671548,3.87011,2583.9,2583.8,4.1722587]
[1724246673392,3.86997,2584.0,2583.9,2.4312]
[1724246673546,7.73971,2584.1,2583.9,2.9812]
[1724246673748,7.73971,2584.1,2583.9,3.25031163]
[1724246673963,3.86996,2584.0,2583.9,3.25031163]
[1724246674160,3.86996,2584.0,2583.9,3.80031163]
[1724246680317,3.86964,2584.3,2584.0,2.3864]
[1724246680588,3.86964,2584.3,2584.1,3.87769537]
[1724246680912,3.86964,2584.3,2584.1,3.11513321]
[1724246681097,7.73925,2584.3,2584.1,3.11513321]
[1724246681392,3.86961,2584.3,2584.1,3.11513321]
[1724246681695,3.86961,2584.3,2584.1,3.81513321]
[1724246682694,3.86938,2584.4,2584.1,3.81513321]
[1724246682864,3.86951,2584.3,2584.2,0.38151332]
[1724246683068,3.86951,2584.3,2584.2,1.11017361]
[1724246684407,3.86951,2584.3,2584.2,0.17866029]
[1724246684408,7.73902,2584.3,2584.2,0.17866029]
[1724246684729,3.86986,2584.1,2583.8,3.0434]
[1724246685029,7.73977,2584.1,2583.9,0.72887908]
[1724246685193,3.86986,2584.1,2583.9,0.72887908]
[1724246686422,3.86986,2584.1,2583.9,1.10610699]
[1724246686789,3.86996,2584.0,2583.9,0.72887908]
[1724246686993,7.7398,2584.1,2583.9,0.72887908]
[1724246687428,3.86986,2584.1,2583.9,0.72887908]
[1724246689001,3.86996,2584.0,2583.9,0.72887908]
[1724246692353,3.86996,2584.0,2583.9,0.17887908]
[1724246692721,3.86996,2584.0,2583.6,2.4554]
[1724246692913,3.86996,2584.0,2583.7,0.72897447]
[1724246697452,6.23995,2584.2,2583.7,4.59927447]
[1724246697656,3.86975,2584.2,2583.9,2.3069]
[1724246697808,3.86937,2584.4,2584.0,0.55]
[1724246698327,3.86937,2584.4,2584.1,0.17868271]
[1724246698543,3.86937,2584.4,2584.2,0.55]
[1724246698734,3.86922,2584.5,2584.2,0.55]
[1724246698913,3.86938,2584.4,2584.3,0.17853687]
[1724246700248,10.04156,2584.4,2584.3,0.17853687]
[1724246700578,3.86984,2584.1,2583.8,0.7]
[1724246700711,3.86984,2584.1,2583.9,0.55]
[1724246700915,7.73975,2584.1,2584.0,0.17864208]
[1724246701223,8.513725,2584.1,2584.0,0.17864208]
[1724246701624,8.513725,2584.1,2583.6,2.4853]
[1724246701625,3.87007,2584.0,2583.6,2.4853]
[1724246701825,3.87014,2583.9,2583.7,0.55]
[1724246702159,3.87001,2584.0,2583.7,0.55]
[1724246703186,7.74006,2584.0,2583.7,0.55]
[1724246703351,3.87012,2583.9,2583.7,0.55]
[1724246703970,3.87012,2583.9,2583.5,0.7]
[1724246703971,3.87012,2583.9,2583.6,0.55]
[1724246705771,3.87001,2584.0,2583.6,3.149436]
[1724246705968,7.74012,2584.0,2583.6,3.149436]
[1724246706203,3.87001,2584.0,2583.6,3.149436]
[1724246707172,7.74006,2584.0,2583.6,3.149436]
[1724246708082,3.87001,2584.0,2583.6,3.149436]
[1724246708480,6.35695,2584.2,2583.6,3.149436]
[1724246708481,3.86975,2584.2,2583.8,2.3049]